[Event "Early-Titled-Tuesday-Blitz-November-28-2023"]
[Site "Chess.com"]
[Date "2023.11.28"]
[Round "11"]
[White "MightyGMpretender"]
[Black "wqws"]
[Result "0-1"]
[WhiteElo "2796"]
[BlackElo "2609"]
[TimeControl "180+1"]
[EndTime "10:14:04 PST"]
[Termination "wqws won by checkmate"]

1. Nf3 {[%clk 0:03:00.9]} 1... Nf6 {[%clk 0:02:59.8]} 2. c4 {[%clk 0:02:58]}
2... g6 {[%clk 0:03:00.1]} 3. Nc3 {[%clk 0:02:57.8]} 3... Bg7 {[%clk 0:03:01]}
4. e4 {[%clk 0:02:58.1]} 4... d6 {[%clk 0:03:00.9]} 5. d4 {[%clk 0:02:58]} 5...
O-O {[%clk 0:03:01.4]} 6. h3 {[%clk 0:02:55.5]} 6... e5 {[%clk 0:03:01.3]} 7. d5
{[%clk 0:02:54.9]} 7... a5 {[%clk 0:03:00.6]} 8. g4 {[%clk 0:02:53.6]} 8... Na6
{[%clk 0:03:00.8]} 9. Be3 {[%clk 0:02:52.7]} 9... Nc5 {[%clk 0:02:54.4]} 10. Nd2
{[%clk 0:02:52]} 10... c6 {[%clk 0:02:44.9]} 11. Be2 {[%clk 0:02:37.3]} 11...
cxd5 {[%clk 0:02:40.3]} 12. cxd5 {[%clk 0:02:37.3]} 12... Bd7 {[%clk 0:02:40.6]}
13. f3 {[%clk 0:02:33.7]} 13... b5 {[%clk 0:02:29.7]} 14. Bxb5 {[%clk
0:02:06.9]} 14... Bxb5 {[%clk 0:02:11.4]} 15. Nxb5 {[%clk 0:02:06.6]} 15... Nd3+
{[%clk 0:02:01.1]} 16. Kf1 {[%clk 0:02:05.9]} 16... Nd7 {[%clk 0:01:40.6]} 17.
Nc4 {[%clk 0:01:53.7]} 17... N7c5 {[%clk 0:01:35]} 18. Nbxd6 {[%clk 0:01:46]}
18... f5 {[%clk 0:01:27.6]} 19. gxf5 {[%clk 0:01:43.3]} 19... gxf5 {[%clk
0:01:25.4]} 20. Nxf5 {[%clk 0:01:42.4]} 20... Rxf5 {[%clk 0:01:24.5]} 21. exf5
{[%clk 0:01:43.3]} 21... Qh4 {[%clk 0:01:16.4]} 22. Nd2 {[%clk 0:01:17.9]} 22...
Rf8 {[%clk 0:01:12]} 23. Bxc5 {[%clk 0:01:12.7]} 23... Nxc5 {[%clk 0:01:11]} 24.
Qc2 {[%clk 0:01:10.3]} 24... Qd4 {[%clk 0:00:48.4]} 25. Qc3 {[%clk 0:01:00.2]}
25... Qxd5 {[%clk 0:00:44]} 26. Qc4 {[%clk 0:01:00.4]} 26... Qxc4+ {[%clk
0:00:40.9]} 27. Nxc4 {[%clk 0:01:01.3]} 27... Rxf5 {[%clk 0:00:41]} 28. Ke2
{[%clk 0:00:53.7]} 28... Ne6 {[%clk 0:00:41.4]} 29. Nd2 {[%clk 0:00:33.9]} 29...
Nf4+ {[%clk 0:00:34.2]} 30. Kf1 {[%clk 0:00:32.3]} 30... Nd3 {[%clk 0:00:33.5]}
31. Rg1 {[%clk 0:00:27.2]} 31... Kf7 {[%clk 0:00:30.5]} 32. Ne4 {[%clk
0:00:20.8]} 32... Bf8 {[%clk 0:00:29]} 33. Rd1 {[%clk 0:00:17.5]} 33... Nxb2
{[%clk 0:00:24]} 34. Rd7+ {[%clk 0:00:10]} 34... Ke6 {[%clk 0:00:24.2]} 35. Rxh7
{[%clk 0:00:08.3]} 35... Rxf3+ {[%clk 0:00:19.9]} 36. Ke2 {[%clk 0:00:08.9]}
36... Ra3 {[%clk 0:00:20]} 37. Rg6+ {[%clk 0:00:08.5]} 37... Kd5 {[%clk
0:00:19.9]} 38. Nf6+ {[%clk 0:00:08.2]} 38... Kc4 {[%clk 0:00:17.9]} 39. Rh4+
{[%clk 0:00:07.7]} 39... Kb5 {[%clk 0:00:17.4]} 40. Nd7 {[%clk 0:00:06]} 40...
Bc5 {[%clk 0:00:16.3]} 41. Nxc5 {[%clk 0:00:04]} 41... Kxc5 {[%clk 0:00:17.2]}
42. Rg5 {[%clk 0:00:03.4]} 42... Nc4 {[%clk 0:00:16.4]} 43. Rh8 {[%clk
0:00:02.5]} 43... Rxa2+ {[%clk 0:00:16.7]} 44. Kd3 {[%clk 0:00:02.8]} 44... Ra3+
{[%clk 0:00:17.2]} 45. Kc2 {[%clk 0:00:03]} 45... Rf3 {[%clk 0:00:15.9]} 46.
Rc8+ {[%clk 0:00:02.4]} 46... Kd4 {[%clk 0:00:16.3]} 47. Rg4+ {[%clk 0:00:02.2]}
47... e4 {[%clk 0:00:16.8]} 48. Rd8+ {[%clk 0:00:02.7]} 48... Ke3 {[%clk
0:00:15.8]} 49. Re8 {[%clk 0:00:02.2]} 49... Nd2 {[%clk 0:00:12.9]} 50. h4
{[%clk 0:00:01.6]} 50... Rh3 {[%clk 0:00:12.9]} 51. Re7 {[%clk 0:00:01.3]} 51...
Rh2 {[%clk 0:00:12.8]} 52. Kc3 {[%clk 0:00:01.2]} 52... a4 {[%clk 0:00:13.1]}
53. Kb4 {[%clk 0:00:01.5]} 53... Kf3 {[%clk 0:00:12.5]} 54. Rg8 {[%clk
0:00:01.6]} 54... Rxh4 {[%clk 0:00:11.6]} 55. Rf8+ {[%clk 0:00:02.1]} 55... Ke2
{[%clk 0:00:10.7]} 56. Kxa4 {[%clk 0:00:02]} 56... e3+ {[%clk 0:00:11.2]} 57.
Ka3 {[%clk 0:00:02.2]} 57... Kd3 {[%clk 0:00:11]} 58. Rd8+ {[%clk 0:00:01.9]}
58... Ke2 {[%clk 0:00:11]} 59. Kb2 {[%clk 0:00:01.4]} 59... Nf3 {[%clk
0:00:10.3]} 60. Ree8 {[%clk 0:00:01.4]} 60... Ng1 {[%clk 0:00:09.6]} 61. Kc3
{[%clk 0:00:02]} 61... Kf2 {[%clk 0:00:09.3]} 62. Kb3 {[%clk 0:00:02.6]} 62...
e2 {[%clk 0:00:09.7]} 63. Rf8+ {[%clk 0:00:03]} 63... Nf3 {[%clk 0:00:09.4]} 64.
Rde8 {[%clk 0:00:03.2]} 64... Rh3 {[%clk 0:00:08.3]} 65. Kc2 {[%clk 0:00:03]}
65... e1=Q {[%clk 0:00:08.5]} 66. Rxe1 {[%clk 0:00:03.5]} 66... Kxe1 {[%clk
0:00:09.4]} 67. Re8+ {[%clk 0:00:04]} 67... Kf2 {[%clk 0:00:09.8]} 68. Kd3
{[%clk 0:00:03.8]} 68... Ne1+ {[%clk 0:00:09.7]} 69. Kc4 {[%clk 0:00:04.3]}
69... Ng2 {[%clk 0:00:09.4]} 70. Kd5 {[%clk 0:00:04.8]} 70... Nf4+ {[%clk
0:00:08.9]} 71. Kd4 {[%clk 0:00:04.9]} 71... Ne2+ {[%clk 0:00:09]} 72. Kd5
{[%clk 0:00:04.7]} 72... Kf3 {[%clk 0:00:09]} 73. Rf8+ {[%clk 0:00:04.6]} 73...
Ke3 {[%clk 0:00:09]} 74. Re8+ {[%clk 0:00:04.6]} 74... Kd3 {[%clk 0:00:09.6]}
75. Ra8 {[%clk 0:00:04.8]} 75... Rh6 {[%clk 0:00:09.7]} 76. Ke5 {[%clk
0:00:04.9]} 76... Rh5+ {[%clk 0:00:09.3]} 77. Kf6 {[%clk 0:00:05.1]} 77... Ke4
{[%clk 0:00:09.2]} 78. Kg6 {[%clk 0:00:05.2]} 78... Re5 {[%clk 0:00:08.3]} 79.
Kf6 {[%clk 0:00:05.3]} 79... Rf5+ {[%clk 0:00:08.1]} 80. Kg6 {[%clk 0:00:05.9]}
80... Nf4+ {[%clk 0:00:08.4]} 81. Kh6 {[%clk 0:00:06.1]} 81... Rf6+ {[%clk
0:00:07]} 82. Kg5 {[%clk 0:00:04.7]} 82... Rg6+ {[%clk 0:00:06.8]} 83. Kh4
{[%clk 0:00:05.2]} 83... Ng2+ {[%clk 0:00:05.7]} 84. Kh5 {[%clk 0:00:04.7]}
84... Rg3 {[%clk 0:00:04.9]} 85. Kh6 {[%clk 0:00:05]} 85... Nf4 {[%clk
0:00:04.6]} 86. Kh7 {[%clk 0:00:05.4]} 86... Kf5 {[%clk 0:00:03.3]} 87. Kh6
{[%clk 0:00:05.9]} 87... Rg6+ {[%clk 0:00:02.5]} 88. Kh7 {[%clk 0:00:06.4]}
88... Rg3 {[%clk 0:00:03.1]} 89. Rf8+ {[%clk 0:00:05.9]} 89... Ke5 {[%clk
0:00:03.5]} 90. Re8+ {[%clk 0:00:06.1]} 90... Ne6 {[%clk 0:00:03.9]} 91. Kh6
{[%clk 0:00:06.2]} 91... Kf6 {[%clk 0:00:04.2]} 92. Kh5 {[%clk 0:00:06.5]} 92...
Ng7+ {[%clk 0:00:04.4]} 93. Kh4 {[%clk 0:00:05.9]} 93... Nf5+ {[%clk 0:00:05]}
94. Kh5 {[%clk 0:00:05.7]} 94... Rg5# {[%clk 0:00:05.6]} 0-1